bitfinex/quotes_SOLUSD_20220228
["timestamp","ask_amount","ask_price","bid_price","bid_amount"]
[1646076657649,1.73838245,96.201,96.113,104.0]
[1646076658251,23.86084891,96.201,96.113,104.0]
[1646076658451,2.19938872,96.2,96.113,104.0]
[1646076658950,2.00449176,96.198,96.113,104.0]
[1646076659952,22.8648,96.208,96.113,104.0]
[1646076660152,2.17257361,96.207,96.113,104.0]
[1646076660355,1.95157111,96.206,96.113,104.0]
[1646076660553,25.81242002,96.206,96.113,104.0]
[1646076660753,1.86093551,96.205,96.113,104.0]
[1646076662355,1.86093551,96.205,96.112,46.2247]
[1646076662356,23.86084891,96.204,96.112,46.2247]
[1646076662556,1.70532693,96.203,96.112,46.2247]
[1646076662957,2.09790711,96.201,96.112,46.2247]
[1646076663356,2.1522341,96.199,96.112,46.2247]
[1646076664356,1.65224536,96.207,96.112,46.2247]
[1646076664555,1.65224536,96.207,96.113,104.0]
[1646076665356,1.65224536,96.207,96.112,46.2247]
[1646076665759,23.86084891,96.206,96.112,46.2247]
[1646076665959,2.08702059,96.205,96.113,104.0]
[1646076666159,2.08702059,96.205,96.112,46.2247]
[1646076666362,22.30084891,96.204,96.112,46.2247]
[1646076666660,1.87426784,96.203,96.113,104.0]
[1646076667666,1.87426784,96.203,96.112,46.2247]
[1646076668868,1.87426784,96.203,96.112,150.2247]
[1646076669965,1.87426784,96.203,96.112,46.2247]
[1646076670766,15.0,96.19,96.112,46.2247]
[1646076670965,15.0,96.19,96.082,104.0]
[1646076670966,1.89654419,96.189,96.082,104.0]
[1646076671165,1.6572018,96.188,96.082,104.0]
[1646076671369,1.6572018,96.188,96.084,104.0]
[1646076671765,1.6572018,96.188,96.086,104.0]
[1646076672401,1.6572018,96.188,96.088,104.0]
[1646076672569,1.6572018,96.188,96.087,62.31]
[1646076672570,1.6572018,96.188,96.09,104.0]
[1646076672972,1.6572018,96.188,96.09,119.0]
[1646076673173,1.6572018,96.188,96.091,104.0]
[1646076673374,1.6572018,96.188,96.085,24.3594]
[1646076673777,1.6572018,96.188,96.086,6.0]
[1646076674179,1.6572018,96.188,96.087,104.0]
[1646076674380,1.6572018,96.188,96.085,24.3594]
[1646076676380,1.6572018,96.188,96.086,104.0]
[1646076676583,1.6572018,96.188,96.098,104.0]
[1646076676779,1.6572018,96.188,96.1,104.0]
[1646076676980,1.6572018,96.188,96.102,104.0]
[1646076677881,1.6572018,96.188,96.1,104.0]
[1646076678482,1.6572018,96.188,96.106,104.0]
[1646076678682,1.6572018,96.188,96.11,15.0]
[1646076678882,1.6572018,96.188,96.111,128.7295]
[1646076683904,1.6572018,96.188,96.112,104.0]
[1646076684506,1.6572018,96.188,96.111,24.7295]
[1646076685009,1.6572018,96.188,96.112,104.0]
[1646076685407,1.70258746,96.208,96.118,104.0]
[1646076685607,25.99978746,96.208,96.118,126.625]
[1646076685808,1.69695302,96.207,96.118,126.625]
[1646076689115,1.69695302,96.207,96.119,62.31]
[1646076689317,2.14191325,96.229,96.138,104.0]
[1646076689514,2.1908834,96.228,96.14,104.0]
[1646076689714,1.6749121,96.238,96.14,119.0]
[1646076690316,43.07739518,96.237,96.14,119.0]
[1646076690515,1.88770424,96.236,96.14,15.0]
[1646076690715,1.88770424,96.236,96.139,23.6301]
[1646076690915,1.67613667,96.229,96.139,23.6301]
[1646076691517,23.1027,96.228,96.139,23.6301]
[1646076691721,2.07281178,96.227,96.139,23.6301]
[1646076693219,2.07281178,96.227,96.14,104.0]
[1646076693421,2.07281178,96.227,96.139,23.6301]
[1646076694622,2.07281178,96.227,96.14,104.0]
[1646076695823,2.07281178,96.227,96.139,23.6301]
[1646076699526,2.07281178,96.227,96.102,21.31648243]
[1646076699725,22.30084891,96.226,96.119,23.482]
[1646076699927,40.01313456,96.226,96.119,23.482]
[1646076700124,1.65830807,96.225,96.119,23.482]
[1646076700325,15.0,96.21,96.119,23.482]
[1646076700525,24.8114537,96.209,96.119,23.482]
[1646076700726,49.19045894,96.208,96.08,29.37176176]
[1646076701025,1.65531565,96.207,96.081,54.4178]
[1646076701229,1.7738416,96.206,96.081,48.4178]
[1646076701425,24.07469051,96.206,96.081,48.4178]
[1646076701631,19.52007697,96.205,96.082,104.0]
[1646076701829,15.0,96.19,96.082,104.0]
[1646076702028,1.81013425,96.188,96.082,104.0]
[1646076703129,1.87115399,96.225,96.09,62.31]
[1646076703329,1.461434,96.242,96.105,104.0]
[1646076703530,1.52507375,96.264,96.121,104.0]
[1646076703730,1.52507375,96.264,96.122,155.5189]
[1646076703931,0.86017,96.263,96.122,151.3609]
[1646076704131,105.33307763,96.262,96.123,4.158]
[1646076704334,15.0,96.25,96.122,47.3609]
[1646076704632,1.49965117,96.248,96.122,47.3609]
[1646076705033,1.71644084,96.246,96.122,47.3609]
[1646076705433,63.72278878,96.244,96.122,47.3609]
[1646076705633,15.0,96.23,96.122,47.3609]
[1646076705834,1.87262618,96.242,96.122,47.3609]
[1646076706161,17.7729685,96.241,96.122,47.3609]
[1646076706334,1.47615939,96.24,96.122,47.3609]
[1646076706633,4.2229486,96.24,96.123,4.158]
[1646076706835,1.47615939,96.24,96.123,4.158]
[1646076707033,19.65958771,96.239,96.123,4.158]
[1646076707333,1.61245744,96.237,96.123,4.158]
[1646076707734,4.38702332,96.236,96.123,4.158]
[1646076707933,1.46631398,96.235,96.123,4.158]
[1646076708232,17.7729685,96.234,96.123,4.158]
[1646076708433,45.54017986,96.233,96.123,4.158]
[1646076708732,1.58009045,96.232,96.123,4.158]
[1646076708933,1.58009045,96.232,96.124,6.0]
[1646076709133,1.56733034,96.23,96.125,4.158]
[1646076709534,1.56733034,96.23,96.123,4.158]
[1646076710136,16.56733034,96.23,96.122,47.3609]
[1646076710340,19.16694249,96.229,96.122,47.3609]
[1646076710535,1.37789163,96.228,96.122,47.3609]
[1646076710737,19.17778935,96.228,96.122,47.3609]
[1646076710938,1.5002104,96.227,96.123,4.159]
[1646076711335,24.3884,96.226,96.123,4.159]
[1646076711536,1.79715734,96.225,96.123,4.159]
[1646076712537,1.79715734,96.225,96.125,104.0]
[1646076712737,1.79715734,96.225,96.126,4.159]
[1646076712937,1.79715734,96.225,96.131,104.0]
[1646076713138,1.79715734,96.225,96.132,4.158]
[1646076713540,17.79464156,96.224,96.132,4.158]
[1646076713746,1.68089889,96.223,96.133,24.4712]
[1646076713946,1.68089889,96.223,96.134,4.158]
[1646076714347,17.79464156,96.222,96.134,4.158]
[1646076714549,1.40503249,96.221,96.133,24.4712]
[1646076715146,17.79464156,96.22,96.133,24.4712]
[1646076715346,1.77731766,96.219,96.133,24.4712]
[1646076715947,17.79464156,96.218,96.133,24.4712]
[1646076716148,1.7322425,96.217,96.133,24.4712]
[1646076716346,17.79464156,96.216,96.133,24.4712]
[1646076716549,1.70007667,96.215,96.133,24.4712]
[1646076716747,1.4604367,96.213,96.133,24.4712]
[1646076717352,17.79464156,96.212,96.133,24.4712]
[1646076717554,1.71534178,96.211,96.133,24.4712]
[1646076718153,17.79464156,96.21,96.133,24.4712]
[1646076718552,1.65645927,96.209,96.133,24.4712]
[1646076718952,23.0169,96.214,96.141,104.0]
[1646076719557,44.15120982,96.233,96.141,104.0]
[1646076719757,44.15120982,96.233,96.143,104.0]
[1646076719956,44.15120982,96.233,96.144,62.31]
[1646076720155,44.15120982,96.233,96.149,104.0]
[1646076720355,44.15120982,96.233,96.161,104.0]
[1646076720659,44.15120982,96.233,96.162,128.6935]
[1646076721055,44.15120982,96.233,96.162,24.6935]
[1646076721467,17.79397312,96.232,96.162,24.6935]
[1646076721666,1.77682545,96.231,96.162,24.6935]
[1646076722065,3.66344466,96.231,96.162,24.6935]
[1646076722265,17.29397312,96.23,96.162,24.6935]
[1646076722469,1.72842239,96.229,96.162,24.6935]
[1646076724566,1.72842239,96.229,96.13,15.0]
[1646076724766,2.74678921,96.228,96.131,22.7705]
[1646076727771,2.74678921,96.228,96.132,104.0]
[1646076728467,2.74678921,96.228,96.131,22.7705]
[1646076731272,2.74678921,96.228,96.132,104.0]
[1646076731773,2.74678921,96.228,96.131,22.7705]
[1646076732173,15.0,96.22,96.131,22.7705]
[1646076732374,1.73269115,96.219,96.131,22.7705]
[1646076732772,1.88661921,96.218,96.131,22.7705]
[1646076733074,3.2368486,96.218,96.131,22.7705]
[1646076733473,1.72034,96.217,96.131,22.7705]
[1646076734773,1.72034,96.217,96.107,4.159]
[1646076734974,3.30000984,96.217,96.093,127.3835]
[1646076735173,24.2919,96.216,96.093,152.30578081]
[1646076735375,1.45317459,96.215,96.093,152.30578081]
[1646076735675,4.1999638,96.215,96.093,149.5589916]
[1646076736076,1.45317459,96.215,96.093,127.3835]
[1646076736274,1.72034,96.214,96.093,127.3835]
[1646076736575,15.0,96.21,96.093,127.3835]
[1646076736773,1.66471768,96.209,96.093,149.5589916]
[1646076737175,3.55133689,96.209,96.094,4.16]
[1646076737375,1.46443295,96.215,96.096,104.0]
[1646076737575,1.46443295,96.215,96.11,15.0]
[1646076737775,1.46443295,96.215,96.111,151.8988]
[1646076737975,1.46443295,96.215,96.112,4.159]
[1646076738374,1.46443295,96.215,96.113,104.0]
[1646076739579,1.46443295,96.215,96.112,108.159]
[1646076739778,3.35105216,96.215,96.112,108.159]
[1646076741282,24.2919,96.216,96.112,108.159]
[1646076745388,3.57688267,96.215,96.112,4.159]
[1646076745786,2.74678921,96.214,96.112,4.159]
[1646076747286,4.39549423,96.214,96.112,4.159]
[1646076747688,1.87175144,96.209,96.112,4.159]
[1646076748089,1.49702512,96.207,96.112,4.159]
[1646076748491,1.72034,96.206,96.112,4.159]
[1646076748690,62.31,96.203,96.076,23.4301]
[1646076748895,1.83709488,96.189,96.076,23.4301]
[1646076749190,1.77904472,96.188,96.076,23.4301]
[1646076749590,4.52583393,96.188,96.076,23.4301]
[1646076749790,1.77904472,96.188,96.076,23.4301]
[1646076749993,1.72034,96.187,96.076,23.4301]
[1646076750190,3.23268118,96.187,96.076,23.4301]
[1646076750691,2.74678921,96.186,96.076,23.4301]
[1646076750890,2.74678921,96.186,96.08,15.0]
[1646076752291,4.21812142,96.186,96.08,15.0]
[1646076752792,19.47662646,96.185,96.08,15.0]
[1646076753092,20.30528568,96.184,96.08,15.0]
[1646076753292,18.86324567,96.184,96.081,104.0]
[1646076753494,1.38054041,96.183,96.08,15.0]
[1646076753693,1.75594382,96.188,96.08,15.0]
[1646076756418,1.71465991,96.187,96.08,15.0]
[1646076757116,1.71465991,96.187,96.081,104.0]
[1646076758018,1.71465991,96.187,96.08,15.0]
[1646076760220,1.88661921,96.186,96.08,15.0]
[1646076761027,62.31,96.184,96.076,23.4301]
[1646076761224,62.31,96.184,96.039,2.74678921]
[1646076761225,15.0,96.17,96.018,22.7152]
[1646076761423,62.31,96.167,96.029,45.9943]
[1646076761625,1.75489019,96.166,96.029,45.9943]
[1646076762025,62.31,96.164,96.029,45.9943]
[1646076762222,1.73658494,96.163,96.029,45.9943]
[1646076762423,1.61216682,96.149,96.029,45.9943]
[1646076762623,1.79283443,96.147,96.029,45.9943]
[1646076763424,2.74678921,96.146,96.029,45.9943]
[1646076764627,2.74678921,96.146,96.03,104.0]
[1646076764927,1.79283443,96.147,96.041,104.0]
[1646076765228,1.79283443,96.147,96.043,104.0]
[1646076765427,1.79283443,96.147,96.042,23.3578]
[1646076765627,23.49016819,96.146,96.042,23.3578]
[1646076765826,1.7164773,96.145,96.042,23.3578]
[1646076766230,24.44575485,96.144,96.042,23.3578]
[1646076766526,1.57498468,96.143,96.042,23.3578]
[1646076766929,4.32177389,96.143,96.042,23.3578]
[1646076767130,1.57498468,96.143,96.042,23.3578]
[1646076767328,1.88661921,96.142,96.042,23.3578]
[1646076770833,1.88661921,96.142,96.042,127.3578]
[1646076771431,1.88661921,96.142,96.043,2.561976]
[1646076771834,1.6201398,96.158,96.045,104.0]
[1646076772033,1.6201398,96.158,96.051,104.0]
[1646076773033,1.88661921,96.162,96.051,104.0]
[1646076773234,1.70757922,96.163,96.051,104.0]
[1646076773435,1.47910668,96.156,96.051,104.0]
[1646076773838,24.44575485,96.155,96.051,104.0]
[1646076774038,15.0,96.21,96.053,104.0]
[1646076774239,15.0,96.23,96.056,62.31]
[1646076774441,48.75065794,96.241,96.054,24.1148]
[1646076774442,1.39822636,96.229,96.073,104.0]
[1646076774639,1.76166524,96.24,96.084,62.31]
[1646076774838,1.76166524,96.24,96.091,104.0]
[1646076775038,57.11944077,96.239,96.101,104.0]
[1646076775239,1.65997421,96.238,96.103,104.0]
[1646076775439,1.65997421,96.238,96.104,2.62846664]
[1646076775738,1.65997421,96.238,96.106,2.80456054]
[1646076775939,1.65997421,96.238,96.121,104.0]
[1646076776139,1.65997421,96.238,96.122,23.4562]
[1646076776540,1.65997421,96.238,96.123,104.0]
[1646076776740,1.65997421,96.238,96.124,2.71427166]
[1646076778440,1.65997421,96.238,96.122,23.4562]
[1646076778642,19.32479679,96.238,96.122,23.4562]
[1646076778839,1.55150278,96.237,96.122,23.4562]
[1646076779242,19.21632536,96.237,96.122,23.4562]
[1646076779446,1.68712601,96.236,96.122,23.4562]
[1646076779643,1.68712601,96.236,96.123,104.0]
[1646076779845,1.68712601,96.236,96.123,112.36]
[1646076780144,1.68712601,96.236,96.123,115.3597503]
[1646076780345,1.68712601,96.236,96.123,114.73824671]
[1646076782345,1.68712601,96.236,96.13,15.0]
[1646076782546,57.11944077,96.239,96.132,2.76963662]
[1646076783144,1.67144979,96.238,96.131,104.0]
[1646076783344,1.35120699,96.238,96.131,104.0]
[1646076784549,25.76380699,96.238,96.131,104.0]
[1646076784746,1.37820113,96.237,96.13,15.0]
[1646076785349,57.11944077,96.239,96.139,104.0]
[1646076785547,57.11944077,96.239,96.138,62.31]
[1646076785548,57.11944077,96.239,96.151,104.0]
[1646076785747,57.11944077,96.239,96.153,104.0]
[1646076786349,57.11944077,96.239,96.152,23.993]
[1646076787253,1.64351097,96.238,96.152,23.993]
[1646076790665,57.11944077,96.239,96.152,23.993]
[1646076792261,1.59158189,96.238,96.152,23.993]
[1646076793066,57.11944077,96.239,96.152,23.993]
[1646076793966,58.65044072,96.239,96.152,23.993]
[1646076794166,57.11944077,96.239,96.152,23.993]
[1646076794367,1.78497403,96.238,96.152,23.993]
[1646076803683,23.609,96.237,96.152,23.993]
[1646076803888,1.70295644,96.236,96.152,23.993]
[1646076812699,57.11944077,96.239,96.153,104.0]
[1646076813102,57.11944077,96.239,96.158,62.31]
[1646076813300,57.11944077,96.239,96.171,104.0]
[1646076813598,15.6454,96.304,96.171,104.0]
[1646076813599,1.85374399,96.274,96.171,104.0]
[1646076813799,23.0006,96.297,96.179,104.0]
[1646076814000,1.50334258,96.296,96.191,104.0]
[1646076814201,1.50334258,96.296,96.193,104.0]
[1646076814600,56.74072866,96.295,96.193,104.0]
[1646076814802,1.80576626,96.294,96.192,22.6321]
[1646076816103,1.66832614,96.292,96.192,22.6321]
[1646076818206,1.66832614,96.292,96.193,104.0]
[1646076818403,1.66832614,96.292,96.192,22.6321]
[1646076820006,1.40030054,96.29,96.192,22.6321]
[1646076820208,1.61319514,96.289,96.192,22.6321]
[1646076820407,62.31,96.289,96.192,22.6321]
[1646076820607,1.72038316,96.288,96.192,22.6321]
[1646076820809,62.31,96.287,96.15,15.0]
[1646076821009,1.46934988,96.286,96.151,23.3618]
[1646076821207,1.49543449,96.285,96.151,23.3618]
[1646076821410,15.0,96.27,96.151,23.3618]
[1646076821608,1.67921983,96.268,96.173,23.3618]
[1646076826613,53.11920369,96.266,96.173,23.3618]
[1646076826913,1.73681926,96.265,96.173,23.3618]
[1646076827312,17.42910971,96.264,96.173,23.3618]
[1646076827518,1.67911918,96.259,96.14,15.0]
[1646076827714,1.67911918,96.259,96.141,23.6711]
[1646076828116,17.42910971,96.258,96.141,23.6711]
[1646076828517,43.46045517,96.257,96.141,23.6711]
[1646076828717,1.47065143,96.256,96.141,23.6711]
[1646076828915,18.89976114,96.256,96.141,23.6711]
[1646076829116,1.43405743,96.255,96.141,23.6711]
[1646076829317,15.0,96.24,96.141,23.6711]
[1646076829517,1.40761862,96.238,96.141,23.6711]
[1646076829949,42.88874162,96.237,96.141,23.6711]
[1646076830150,1.47799563,96.236,96.141,23.6711]
[1646076831948,1.47799563,96.236,96.141,22.6711]
[1646076835155,42.88874162,96.237,96.142,5.03239652]
[1646076835452,42.88874162,96.237,96.143,6.0]
[1646076835655,42.88874162,96.237,96.143,33.05586209]
[1646076835952,42.88874162,96.237,96.145,104.0]
[1646076836453,42.88874162,96.237,96.147,104.0]
[1646076836655,42.88874162,96.237,96.16,15.0]
[1646076836855,42.88874162,96.237,96.161,23.749]
[1646076837054,42.88874162,96.237,96.161,50.80486209]
[1646076837255,42.88874162,96.237,96.162,27.05586209]
[1646076839156,42.88874162,96.237,96.161,23.749]
[1646076841460,42.88874162,96.237,96.161,127.749]
[1646076842564,42.88874162,96.237,96.163,104.0]
[1646076842764,42.88874162,96.237,96.165,104.0]
[1646076842962,42.88874162,96.237,96.171,104.0]
[1646076843162,1.53868251,96.278,96.171,104.0]
[1646076843364,47.88910871,96.279,96.173,104.0]
[1646076843563,17.42162489,96.277,96.173,104.0]
[1646076843866,17.42162489,96.277,96.175,104.0]
[1646076844063,17.42162489,96.278,96.175,104.0]
[1646076844263,51.78288051,96.277,96.176,2.74678921]
[1646076844466,51.78288051,96.277,96.18,15.0]
[1646076844865,17.42162489,96.276,96.18,15.0]
[1646076845066,1.80285026,96.275,96.18,15.0]
[1646076845265,1.78484621,96.274,96.18,15.0]
[1646076845665,1.68370553,96.272,96.172,22.6934]
[1646076846066,17.42162489,96.271,96.172,22.6934]
[1646076846267,1.52522049,96.27,96.172,22.6934]
[1646076846666,16.67699592,96.269,96.111,2.92420539]
[1646076846868,1.58181603,96.268,96.13,15.0]
[1646076847268,17.42162489,96.267,96.13,15.0]
[1646076847467,1.67278209,96.266,96.13,41.94033542]
[1646076847667,1.67278209,96.266,96.131,104.0]
[1646076847869,1.67278209,96.266,96.132,8.63977655]
[1646076848069,17.42162489,96.265,96.134,3.05147976]
[1646076848268,1.64562881,96.264,96.134,3.05147976]
[1646076848772,1.83118546,96.262,96.137,2.69496111]
[1646076848972,1.83118546,96.262,96.15,15.0]
[1646076849368,1.81777906,96.26,96.15,15.0]
[1646076849667,17.42162489,96.259,96.151,104.0]
[1646076850071,1.7231683,96.258,96.151,104.0]
[1646076850467,17.42162489,96.257,96.151,104.0]
[1646076850669,1.57211596,96.256,96.151,104.0]
[1646076851269,1.57211596,96.256,96.15,17.74678921]
[1646076851476,1.48568488,96.254,96.15,17.74678921]
[1646076851872,1.80734014,96.252,96.15,17.74678921]
[1646076852170,17.42162489,96.251,96.15,17.74678921]
[1646076852370,1.60336802,96.25,96.15,17.74678921]
[1646076852569,1.60336802,96.25,96.15,121.74678921]
[1646076852769,1.80858164,96.262,96.15,121.74678921]
[1646076853173,1.80858164,96.262,96.15,17.74678921]
[1646076853571,17.42029236,96.261,96.15,17.74678921]
[1646076853772,1.63281618,96.26,96.15,121.74678921]
[1646076854174,1.63281618,96.26,96.151,24.9277]
[1646076854374,1.85280136,96.258,96.151,24.9277]
[1646076854574,1.85280136,96.258,96.152,26.94033542]
[1646076854778,1.71551559,96.256,96.152,26.94033542]
[1646076854973,1.71551559,96.256,96.151,24.9277]
[1646076855174,1.42686614,96.254,96.151,24.9277]
[1646076855373,15.0,96.25,96.151,24.9277]
[1646076855774,1.40949524,96.249,96.151,24.9277]
[1646076855973,80.87619703,96.248,96.151,24.9277]
[1646076856192,1.69921375,96.247,96.151,24.9277]
[1646076856392,19.11950611,96.247,96.151,24.9277]
[1646076856594,1.78339281,96.246,96.151,24.9277]
[1646076856793,19.20368517,96.246,96.151,24.9277]
[1646076856992,1.40153104,96.245,96.151,24.9277]
[1646076857291,1.38071876,96.244,96.151,24.9277]
[1646076857693,17.42029236,96.245,96.151,24.9277]
[1646076857694,1.53068591,96.239,96.151,24.9277]
[1646076858393,17.42029236,96.238,96.151,24.9277]
[1646076858793,57.25579703,96.248,96.151,128.9277]
[1646076858994,57.25579703,96.248,96.152,35.48867063]
[1646076859397,57.25579703,96.248,96.153,133.48867063]
[1646076859795,57.25579703,96.248,96.155,104.0]
[1646076860294,57.25579703,96.248,96.17,15.0]
[1646076860497,57.25579703,96.248,96.171,22.6997]
[1646076861298,57.25579703,96.248,96.172,2.74678921]
[1646076861702,57.25579703,96.248,96.172,106.74678921]
[1646076862099,57.25579703,96.248,96.174,104.0]
[1646076862499,57.25579703,96.248,96.175,5.19601889]
[1646076863100,57.25579703,96.248,96.175,2.74678921]
[1646076865104,57.25579703,96.248,96.172,104.0]
[1646076865303,57.25579703,96.248,96.171,22.6997]
[1646076869309,57.25579703,96.248,96.172,104.0]
[1646076869510,57.25579703,96.248,96.172,106.74678921]
[1646076869710,57.25579703,96.248,96.173,2.74678921]
[1646076871710,1.76362681,96.277,96.173,2.74678921]
[1646076871913,1.66799044,96.288,96.174,104.0]
[1646076872111,25.90971968,96.309,96.175,2.99567679]
[1646076872311,17.41407066,96.287,96.176,104.0]
[1646076872514,19.12405981,96.287,96.177,2.2562834]
[1646076872714,51.38978638,96.286,96.191,104.0]
[1646076872913,51.38978638,96.286,96.193,104.0]
[1646076873911,1.77857702,96.285,96.192,50.67148921]
[1646076874613,1.77857702,96.285,96.193,2.74678921]
[1646076876717,1.77857702,96.285,96.193,106.74678921]
[1646076876919,1.77857702,96.285,96.193,2.74678921]
[1646076877119,1.77857702,96.285,96.194,2.74678921]
[1646076878217,1.77857702,96.285,96.192,47.9247]
[1646076879724,49.65171311,96.286,96.193,104.0]
[1646076879923,49.65171311,96.286,96.192,47.9247]
[1646076881426,1.384264,96.285,96.192,47.9247]
[1646076881924,0.83083914,96.285,96.192,47.9247]
[1646076882535,25.37673914,96.285,96.192,47.9247]
[1646076882728,1.49896734,96.284,96.192,47.9247]
[1646076883528,24.5459,96.285,96.192,74.66658142]
[1646076883731,24.5459,96.285,96.193,2.74678921]
[1646076884928,1.84505524,96.284,96.193,2.74678921]
[1646076885731,1.84505524,96.284,96.192,47.9247]
[1646076885930,1.72781009,96.279,96.192,47.9247]
[1646076886530,1.6549826,96.277,96.192,47.9247]
[1646076887032,17.3843695,96.276,96.192,47.9247]
[1646076887231,1.8059818,96.275,96.192,47.9247]
[1646076887833,1.81049396,96.273,96.192,47.9247]
[1646076888030,23.5727,96.272,96.192,47.9247]
[1646076888231,1.39057328,96.271,96.192,47.9247]
[1646076892337,1.48088212,96.29,96.192,47.9247]
[1646076893141,24.6844,96.291,96.194,3.07339744]
[1646076893342,1.52603668,96.289,96.193,106.74678921]
[1646076894943,24.6844,96.291,96.195,104.0]
[1646076895343,24.6844,96.291,96.196,2.74678921]
[1646076895544,24.6844,96.291,96.21,15.0]
[1646076895743,24.6844,96.291,96.211,23.9427]
[1646076896946,49.15171311,96.286,96.211,23.9427]
[1646076898568,1.76680657,96.285,96.211,23.9427]
[1646076899766,26.44340657,96.285,96.211,23.9427]
[1646076900166,1.64523667,96.284,96.211,23.9427]
[1646076900566,1.14523667,96.284,96.211,23.9427]
[1646076906676,49.15171311,96.286,96.212,2.74678921]
[1646076906879,49.15171311,96.286,96.22,15.0]
[1646076907076,49.15171311,96.286,96.221,3.07777206]
[1646076907276,22.5348,96.324,96.221,5.82456127]
[1646076907475,22.5348,96.324,96.222,24.4555]
[1646076907675,22.5348,96.324,96.223,7.22017648]
[1646076907875,18.74264782,96.323,96.223,4.154]
[1646076908076,1.54159052,96.322,96.222,24.4555]
[1646076908276,1.69408073,96.321,96.223,24.5159]
[1646076908476,24.2296803,96.321,96.223,24.5159]
[1646076908675,1.36120352,96.319,96.223,24.5159]
[1646076909076,1.66998857,96.317,96.223,24.5159]
[1646076909476,1.61325689,96.315,96.223,24.5159]
[1646076909876,1.5980784,96.313,96.223,24.5159]
[1646076910275,19.05270278,96.312,96.223,24.5159]
[1646076910478,1.4163596,96.311,96.223,24.5159]
[1646076910678,1.85912134,96.309,96.222,24.4555]
[1646076910876,1.43122427,96.31,96.222,24.4555]
[1646076911279,1.49309092,96.321,96.222,24.4555]
[1646076911777,23.5246,96.32,96.222,24.4555]
[1646076911978,1.68392334,96.319,96.222,24.4555]
[1646076912379,17.38863551,96.318,96.222,24.4555]
[1646076912578,1.5373232,96.317,96.222,24.4555]
[1646076913179,1.78223548,96.315,96.222,24.4555]
[1646076913583,1.53541842,96.313,96.222,24.4555]
[1646076913986,17.38863551,96.312,96.222,24.4555]
[1646076914188,1.52659247,96.311,96.222,24.4555]
[1646076914888,1.52828956,96.309,96.222,24.4555]
[1646076915086,17.38863551,96.308,96.222,24.4555]
[1646076915287,51.58162729,96.307,96.222,24.4555]
[1646076915487,74.29462729,96.307,96.222,24.4555]
[1646076915687,17.38863551,96.306,96.222,24.4555]
[1646076916294,17.38863551,96.306,96.223,2.26628978]
[1646076916489,74.29462729,96.307,96.223,2.26628978]
[1646076917387,1.55489656,96.306,96.222,24.4555]
[1646076920189,17.40824844,96.305,96.222,24.4555]
[1646076920389,1.84277905,96.304,96.222,24.4555]
[1646076920988,17.40824844,96.303,96.222,24.4555]
[1646076921187,1.35457116,96.302,96.222,24.4555]
[1646076921392,15.0,96.3,96.222,24.4555]
[1646076921588,1.58555265,96.299,96.222,24.4555]
[1646076921792,18.99380109,96.299,96.222,24.4555]
[1646076921990,1.71960796,96.298,96.222,24.4555]
[1646076922191,17.40824844,96.298,96.182,4.155]
[1646076922391,22.38906827,96.297,96.193,24.5022]
[1646076922590,1.79962588,96.296,96.193,24.5022]
[1646076922791,22.77522545,96.296,96.193,24.5022]
[1646076922991,64.33685155,96.295,96.193,24.5022]
[1646076923191,1.80655904,96.294,96.193,24.5022]
[1646076923392,19.21480748,96.294,96.193,24.5022]
[1646076923715,43.30550949,96.292,96.193,24.5022]
[1646076923892,1.70551792,96.291,96.193,24.5022]
[1646076924091,1.70551792,96.291,96.194,2.79674041]
[1646076924295,17.40824844,96.29,96.194,2.79674041]
[1646076925397,17.40824844,96.291,96.194,106.79674041]
[1646076925597,17.40824844,96.291,96.195,2.93764621]
[1646076927000,17.40824844,96.291,96.196,2.74678921]
[1646076927201,17.40824844,96.291,96.201,104.0]
[1646076927401,43.30550949,96.292,96.202,3.04871556]
[1646076930305,17.41872831,96.291,96.202,3.04871556]
[1646076931223,1.72273409,96.29,96.193,24.5022]
[1646076931628,1.74130115,96.288,96.193,24.5022]